Cogmind - Beta 10.2 @@@ ROGUE MODE // 2021.05.28 @ 04:20:38 Player: mat Result: Destroyed by S-27 Virus with Autogun Performance ------------- Evolutions (3) 1500 Regions Visited (13) 2600 Robots Destroyed (41) 205 Value Destroyed (1228) 1228 Prototype IDs (13) 260 Alien Tech Used (0) 0 Bonus (360) 360 TOTAL SCORE: 6153 Bonus ------- Follower Combat Kills 60 Met Data Miner 300 Cogmind --------- Core Integrity 0/700 Matter 300/300 Energy 98/100 System Corruption 0% Temperature Cool (0) Movement Core (50) Location -6/Proximity Caves Parts ------- > --- POWER (1) -------- (None) > --- PROPULSION (2) --- (None) > --- UTILITY (7) ------ (None) > --- WEAPON (3) ------- (None) > --- INVENTORY (4) ---- Large Storage Unit Heavy Armor Plating Minigun Peak State ------------ > --- POWER ------------ Improved Ion Engine > --- PROPULSION ------- Light Treads Light Treads > --- UTILITY ---------- Improved Heat Sink Improved Heat Sink Large Storage Unit Large Storage Unit Targeting Computer Recoil Stabilizer Improved Utility Shielding > --- WEAPON ----------- Precision Beam Rifle Enhanced Autogun Gauss Rifle > --- INVENTORY -------- Cooled Ion Engine Deuterium Engine Deuterium Engine Light Treads Light Treads Medium Treads High-capacity Matter Pod Targeting Computer Heavy Armor Plating Improved Shield Generator System Shield Beam Rifle Particle Gun Heavy Assault Rifle Enhanced Autogun [Rating: 35] Favorites ----------- Power Ion Engine Engine Ion Engine Propulsion Light Treads Treads Light Treads Flight Unit Xenon Bombardment Thruster Utility Large Storage Unit Device Improved Heat Sink Storage Large Storage Unit Processor Targeting Computer Hackware Hacking Suite Protection Improved Utility Shielding Weapon EM Pulse Gun Energy Gun EM Pulse Gun Ballistic Gun Light Assault Rifle Build | -11 -10 -10 -10 -9 -8 -8 -7 -7 -7 -7 -7 -7 -6 ------- Run | Scr Mat Min Exi Min Mat Sto Fac Was Fac Low Low Dat Pro Slots Evolved 6 | . . . . . 4 . 2 . . . . . . Power . | . . . . . . . . . . . . . . Propulsion . | . . . . . . . . . . . . . . Utility 5 | . . . . . 3 . 2 . . . . . . Weapon 1 | . . . . . 1 . . . . . . . . Parts Attached 36 | 6 1 . 2 2 12 8 2 . 3 . . . . Power 2 | 1 . . . . 1 . . . . . . . . Engine 2 | 1 . . . . 1 . . . . . . . . Core . | . . . . . . . . . . . . . . Reactor . | . . . . . . . . . . . . . . Propulsion 7 | 2 . . . . 1 3 . . 1 . . . . Treads 6 | 2 . . . . 1 3 . . . . . . . Leg . | . . . . . . . . . . . . . . Wheel . | . . . . . . . . . . . . . . Hover . | . . . . . . . . . . . . . . Flight 1 | . . . . . . . . . 1 . . . . Utility 13 | 1 1 . 2 . 5 2 2 . . . . . . Device 4 | . . . . . . 2 2 . . . . . . Storage 5 | 1 1 . 2 . 1 . . . . . . . . Processor 1 | . . . . . 1 . . . . . . . . Hackware 1 | . . . . . 1 . . . . . . . . Protection 2 | . . . . . 2 . . . . . . . . Artifact . | . . . . . . . . . . . . . . Weapon 14 | 2 . . . 2 5 3 . . 2 . . . . Energy Gun 8 | 2 . . . 1 2 1 . . 2 . . . . Energy Cannon . | . . . . . . . . . . . . . . Ballistic Gun 6 | . . . . 1 3 2 . . . . . . . Ballistic Cannon . | . . . . . . . . . . . . . . Launcher . | . . . . . . . . . . . . . . Special Weapon . | . . . . . . . . . . . . . . Impact Weapon . | . . . . . . . . . . . . . . Slashing Weapon . | . . . . . . . . . . . . . . Piercing Weapon . | . . . . . . . . . . . . . . Special Melee Weapon . | . . . . . . . . . . . . . . Unidentified Prototypes 2 | . . . . . . 2 . . . . . . . Parts Lost 13 | . . . . 2 6 . . 3 . 2 . . . Power . | . . . . . . . . . . . . . . Propulsion 2 | . . . . . 1 . . . . 1 . . . Utility 3 | . . . . . 1 . . 2 . . . . . Weapon 8 | . . . . 2 4 . . 1 . 1 . . . Highest Loss Streak 3 | . . . . 2 2 . . 3 . 2 . . . Average Slot Usage (%) 84 | . 98 100 100 100 99 100 100 65 2 1 . . . Engine 9 | . 14 14 14 14 9 9 7 4 . . . . . Treads 18 | . 28 28 28 28 18 18 15 9 . . . . . Device 3 | . . . . . . 5 23 16 . . . . . Storage 18 | . 26 28 28 28 20 18 15 8 . . . . . Processor 3 | . . . . . 9 9 7 5 . . . . . Hackware 1 | . . . . . 6 3 . . . . . . . Protection 3 | . . . . . 9 9 7 5 . . . . . Energy Gun 13 | . 28 28 28 14 7 9 7 4 1 . . . . Ballistic Gun 8 | . . . . 14 19 18 15 10 . . . . . Naked Turns 525 | . . . . . . . . 31 114 98 77 44 161 Heaviest Build 53 | 13 21 21 41 40 51 51 53 53 4 4 . . . Greatest Support 40 | 40 40 40 40 40 40 40 40 40 7 7 3 3 3 Greatest Overweight (x) 2 | 1 . . 1 . 1 1 1 2 . . . . . Average Overweight (x) . | . . . . . 1 1 1 . . . . . . Largest Inventory Capacity 16 | 6 10 10 16 16 16 16 16 16 4 4 4 4 4 Average Capacity 12 | 5 9 10 13 16 16 16 16 11 4 4 4 4 4 Most Carried 16 | 6 10 10 12 12 16 16 16 16 4 4 4 4 4 Average Carried 10 | 2 6 10 11 11 14 15 14 10 3 4 4 4 4 Final Capacity 16 | 6 10 10 16 16 16 16 16 4 4 4 4 4 4 Final Carried 16 | 2 10 10 12 12 13 16 16 3 4 4 4 4 4 Class Distribution -------------------- 56% | Mutant 32% | Scavenger-Gunner 8% | Gunner Dominant Class ---------------- Mutant | -10/Materials Mutant | -10/Mines Mutant | -10/Exiles Mutant | -9/Mines Scavenger-Gunner | -8/Materials Scavenger-Gunner | -8/Storage Scavenger-Gunner | -7/Factory Scavenger-Gunner | -7/Waste Mutant | -7/Factory Mutant | -7/Lower Caves Mutant | -7/Lower Caves Mutant | -7/Data Miner Mutant | -6/Proximity Caves Resources | -11 -10 -10 -10 -9 -8 -8 -7 -7 -7 -7 -7 -7 -6 ----------- Run | Scr Mat Min Exi Min Mat Sto Fac Was Fac Low Low Dat Pro Matter Collected 911 | 212 58 . . 40 302 231 48 . . . . . 20 Remotely . | . . . . . . . . . . . . . . Salvage Created 1556 | . 62 . . 79 676 682 57 . . . . . . Parts 100 | . 12 . . 5 39 37 7 . . . . . . Haulers Intercepted 1 | . . . . . . 1 . . . . . . . Recyclers Shooed . | . . . . . . . . . . . . . . Parts Field Recycled . | . . . . . . . . . . . . . . Retrieved Matter . | . . . . . . . . . . . . . . Parts Self-Destructed 5 | . . . . . . . . . . . . . 5 Prevented . | . . . . . . . . . . . . . . Kills | -11 -10 -10 -10 -9 -8 -8 -7 -7 -7 -7 -7 -7 -6 ------- Run | Scr Mat Min Exi Min Mat Sto Fac Was Fac Low Low Dat Pro Combat Hostiles Destroyed 30 | . 3 . . 3 12 11 1 . . . . . . Guns 30 | . 3 . . 3 12 11 1 . . . . . . Classes Destroyed 11 | . 2 . . 1 5 2 1 . . . . . . Worker 2 | . . . . . 1 1 . . . . . . . Builder 1 | . . . . . . . 1 . . . . . . Tunneler 1 | . . . . 1 . . . . . . . . . Hauler 1 | . . . . . . 1 . . . . . . . Recycler 2 | . . . . . . 2 . . . . . . . Operator 1 | . . . . . 1 . . . . . . . . Watcher 3 | . 1 . . . 2 . . . . . . . . Swarmer 10 | . 3 . . 3 . 4 . . . . . . . Grunt 9 | . . . . . 6 3 . . . . . . . Sentry 7 | . . . . . 4 3 . . . . . . . Hunter 4 | . . . . . 2 1 1 . . . . . . Best Kill Streak 5 | . 3 . . 2 4 5 2 . . . . . . Combat Bots Only 4 | . 3 . . 2 3 4 1 . . . . . . Max Kills in Single Turn 2 | . 1 . . 1 1 2 1 . . . . . . Gunslinging . | . . . . . . . . . . . . . . Exploded . | . . . . . . . . . . . . . . Melee . | . . . . . . . . . . . . . . Uniques/NPCs Destroyed . | . . . . . . . . . . . . . . Combat | -11 -10 -10 -10 -9 -8 -8 -7 -7 -7 -7 -7 -7 -6 -------- Run | Scr Mat Min Exi Min Mat Sto Fac Was Fac Low Low Dat Pro Damage Taken 2495 | . 89 . . 257 1019 228 85 115 15 110 . . 577 Core 946 | . . . . 65 152 20 25 78 15 14 . . 577 Absorbed by Shields . | . . . . . . . . . . . . . . Core Remaining (%) 80 | 100 . . . 74 . 68 . . . . . . . Volleys Fired 111 | . 11 1 . 13 57 25 4 . . . . . . Largest 3 | . 2 2 . 2 3 3 3 . . . . . . Hottest 114 | . 90 90 . 90 113 114 114 . . . . . . Shots Fired 294 | . 22 2 . 26 165 67 12 . . . . . . Gun 294 | . 22 2 . 26 165 67 12 . . . . . . Cannon . | . . . . . . . . . . . . . . Launcher . | . . . . . . . . . . . . . . Special . | . . . . . . . . . . . . . . Kinetic 190 | . . . . 10 126 46 8 . . . . . . Thermal 65 | . 11 1 . 3 25 21 4 . . . . . . Explosive . | . . . . . . . . . . . . . . Electromagnetic 39 | . 11 1 . 13 14 . . . . . . . . Robot Hit Streak 34 | . 6 2 . 8 19 33 34 . . . . . . Robot Miss Streak 4 | . 3 . . 4 3 3 1 . . . . . . Penetration Max 1 | . . . . . . 1 . . . . . . . Secondary Targets 2 | . . . . 1 1 . . . . . . . . Max Gunslinging Chain 1 | . . . . 1 1 . . . . . . . . Shots Hit Robots 201 | . 12 2 . 16 127 37 7 . . . . . . Core Hits 80 | . 5 1 . 5 43 22 3 . . . . . 1 Critical Hits . | . . . . . . . . . . . . . . Critical Kills . | . . . . . . . . . . . . . . Critical Parts Destroyed . | . . . . . . . . . . . . . . Melee Attacks . | . . . . . . . . . . . . . . Impact . | . . . . . . . . . . . . . . Slashing . | . . . . . . . . . . . . . . Piercing . | . . . . . . . . . . . . . . Sneak Attacks . | . . . . . . . . . . . . . . Combat Hostiles . | . . . . . . . . . . . . . . Follow-up Attacks . | . . . . . . . . . . . . . . Damage Inflicted 2568 | . 136 26 . 179 1460 647 108 . . . . . 12 Guns 2556 | . 136 26 . 179 1460 647 108 . . . . . . Cannons . | . . . . . . . . . . . . . . Explosions . | . . . . . . . . . . . . . . Melee . | . . . . . . . . . . . . . . Ramming 12 | . . . . . . . . . . . . . 12 Kinetic 1409 | . . . . 48 961 344 56 . . . . . . Thermal 796 | . 61 13 . 26 341 303 52 . . . . . . Explosive . | . . . . . . . . . . . . . . Electromagnetic 351 | . 75 13 . 105 158 . . . . . . . . Impact . | . . . . . . . . . . . . . . Slashing . | . . . . . . . . . . . . . . Piercing . | . . . . . . . . . . . . . . Highest Corruption . | . . . . . . . . . . . . . . Average Corruption . | . . . . . . . . . . . . . . Corruption Purged . | . . . . . . . . . . . . . . Overload Shots . | . . . . . . . . . . . . . . Overflow Damage . | . . . . . . . . . . . . . . Projectiles . | . . . . . . . . . . . . . . Explosions . | . . . . . . . . . . . . . . Melee . | . . . . . . . . . . . . . . Knockbacks . | . . . . . . . . . . . . . . Impact . | . . . . . . . . . . . . . . Kinetic . | . . . . . . . . . . . . . . Secondary . | . . . . . . . . . . . . . . Self-Inflicted Damage 6 | . . . . . . . . . . . . . 6 Shots . | . . . . . . . . . . . . . . Rammed 1 | . . . . . . . . . . . . . 1 Targets Rammed 1 | . . . . . . . . . . . . . 1 Kicked . | . . . . . . . . . . . . . . Crushed . | . . . . . . . . . . . . . . Highest Temperature 303 | . 180 30 . 90 303 155 4 . . . . . . Average Temperature 83 | . 62 18 . 59 104 55 2 . . . . . . Received Heat Transfer 420 | . . . . . 324 27 . . 9 27 . . 33 Siege Activations . | . . . . . . . . . . . . . . Robots Corrupted . | . . . . . . . . . . . . . . Combat Hostiles . | . . . . . . . . . . . . . . Parts Fried . | . . . . . . . . . . . . . . Impact Corruptions . | . . . . . . . . . . . . . . Robots Melted . | . . . . . . . . . . . . . . Combat Hostiles . | . . . . . . . . . . . . . . Parts Melted 4 | . . . . 1 2 . 1 . . . . . . Heat Transferred 1887 | . 185 37 . 74 814 666 111 . . . . . . Parts Sabotaged . | . . . . . . . . . . . . . . Parts Stolen . | . . . . . . . . . . . . . . Parts Stripped . | . . . . . . . . . . . . . . Power Chain Reactions . | . . . . . . . . . . . . . . Missiles Intercepted . | . . . . . . . . . . . . . . Alert | -11 -10 -10 -10 -9 -8 -8 -7 -7 -7 -7 -7 -7 -6 ------- Run | Scr Mat Min Exi Min Mat Sto Fac Was Fac Low Low Dat Pro Peak Influence 370 | . 107 5 . 45 218 370 188 80 110 . . . . Initial 138 | . . 5 . . 17 91 138 65 35 . . . . Average 118 | . 50 5 . 33 106 262 145 61 59 . . . . Maximum Alert Level 1 | . . . . . 1 1 . . . . . . . Low Security (%) 82 | 100 100 100 . 100 97 11 100 100 100 . . . . Level 1 17 | . . . . . 2 88 . . . . . . . Level 2 . | . . . . . . . . . . . . . . Level 3 . | . . . . . . . . . . . . . . Level 4 . | . . . . . . . . . . . . . . Level 5 . | . . . . . . . . . . . . . . High Security . | . . . . . . . . . . . . . . Max Security . | . . . . . . . . . . . . . . Squads Dispatched 4 | . . . . . 2 . . . 1 . . . 1 Investigation . | . . . . . . . . . . . . . . Extermination . | . . . . . . . . . . . . . . Reinforcement 3 | . . . . . 2 . . . 1 . . . . Assault 1 | . . . . . . . . . . . . . 1 Garrison . | . . . . . . . . . . . . . . Intercept . | . . . . . . . . . . . . . . Construction Impeded . | . . . . . . . . . . . . . . Haulers Reinforced . | . . . . . . . . . . . . . . Stealth | -11 -10 -10 -10 -9 -8 -8 -7 -7 -7 -7 -7 -7 -6 --------- Run | Scr Mat Min Exi Min Mat Sto Fac Was Fac Low Low Dat Pro Distress Signals 2 | . . . . . 2 . . . . . . . . Communications Jammed . | . . . . . . . . . . . . . . Distress Signals . | . . . . . . . . . . . . . . Times Spotted 77 | . 7 . . 3 18 12 1 4 5 6 . . 21 Peak Tracking Total 15 | . 3 . . 3 3 4 1 4 4 7 . . 15 Tactical Retreats 9 | . . . . . . 1 . . 2 3 . . 3 Traps | -11 -10 -10 -10 -9 -8 -8 -7 -7 -7 -7 -7 -7 -6 ------- Run | Scr Mat Min Exi Min Mat Sto Fac Was Fac Low Low Dat Pro Traps Triggered 4 | . 1 . . . . 1 1 . 1 . . . . Indirectly . | . . . . . . . . . . . . . . Trap Hack Attempts . | . . . . . . . . . . . . . . Triggered . | . . . . . . . . . . . . . . Disarmed . | . . . . . . . . . . . . . . Reprogrammed . | . . . . . . . . . . . . . . Reused . | . . . . . . . . . . . . . . Traps Extracted . | . . . . . . . . . . . . . . Installed . | . . . . . . . . . . . . . . Triggered 1 | . . . . . . . . . . . . . 1 Machines | -11 -10 -10 -10 -9 -8 -8 -7 -7 -7 -7 -7 -7 -6 ---------- Run | Scr Mat Min Exi Min Mat Sto Fac Was Fac Low Low Dat Pro Machines Disabled 6 | . 1 . . . . 4 1 . . . . . . Max in Single Turn 1 | . 1 . . . . 1 1 . . . . . . Machines Sabotaged . | . . . . . . . . . . . . . . Garrisons Compromised . | . . . . . . . . . . . . . . Overloaded Fab Kills . | . . . . . . . . . . . . . . Fab Network Shutdowns . | . . . . . . . . . . . . . . Hacking | -11 -10 -10 -10 -9 -8 -8 -7 -7 -7 -7 -7 -7 -6 --------- Run | Scr Mat Min Exi Min Mat Sto Fac Was Fac Low Low Dat Pro Machines Accessed 6 | . . . . . 2 . . . . . . 4 . Terminals 2 | . . . . . 2 . . . . . . . . Fabricators . | . . . . . . . . . . . . . . Repair Stations . | . . . . . . . . . . . . . . Recycling Units . | . . . . . . . . . . . . . . Scanalyzers . | . . . . . . . . . . . . . . Garrison Access . | . . . . . . . . . . . . . . Total Hacks 32 | . . . . . 4 . . . . . . 28 . Successful 30 | . . . . . 2 . . . . . . 28 . Failed 2 | . . . . . 2 . . . . . . . . Catastrophic . | . . . . . . . . . . . . . . Database Lockouts . | . . . . . . . . . . . . . . Manual 2 | . . . . . 2 . . . . . . . . Terminals 4 | . . . . . 4 . . . . . . . . Fabricators . | . . . . . . . . . . . . . . Repair Stations . | . . . . . . . . . . . . . . Recycling Units . | . . . . . . . . . . . . . . Scanalyzers . | . . . . . . . . . . . . . . Garrison Access . | . . . . . . . . . . . . . . Terminal Hacks 30 | . . . . . 2 . . . . . . 28 . Record 11 | . . . . . . . . . . . . 11 . Part Schematic 6 | . . . . . . . . . . . . 6 . Robot Schematic 8 | . . . . . . . . . . . . 8 . Prototype ID Bank 3 | . . . . . . . . . . . . 3 . Branch Access Points 1 | . . . . . 1 . . . . . . . . Alert Level 1 | . . . . . 1 . . . . . . . . Fabricator Hacks . | . . . . . . . . . . . . . . Repair Station Hacks . | . . . . . . . . . . . . . . Recycling Unit Hacks . | . . . . . . . . . . . . . . Scanalyzer . | . . . . . . . . . . . . . . Garrison Access Hacks . | . . . . . . . . . . . . . . Unauthorized Hacks . | . . . . . . . . . . . . . . Terminals . | . . . . . . . . . . . . . . Fabricators . | . . . . . . . . . . . . . . Repair Stations . | . . . . . . . . . . . . . . Recycling Units . | . . . . . . . . . . . . . . Scanalyzers . | . . . . . . . . . . . . . . Garrison Access . | . . . . . . . . . . . . . . Data Cores Recovered . | . . . . . . . . . . . . . . Used . | . . . . . . . . . . . . . . Hacking Detections . | . . . . . . . . . . . . . . Full Trace Events . | . . . . . . . . . . . . . . Feedback Events . | . . . . . . . . . . . . . . Feedback Blocked . | . . . . . . . . . . . . . . Robot Schematics Acquired 8 | . . . . . . . . . . . . 8 . Robots Built . | . . . . . . . . . . . . . . Matter . | . . . . . . . . . . . . . . Time . | . . . . . . . . . . . . . . Total Robot Build Rating . | . . . . . . . . . . . . . . Part Schematics Acquired 6 | . . . . . . . . . . . . 6 . Parts Built . | . . . . . . . . . . . . . . Matter . | . . . . . . . . . . . . . . Time . | . . . . . . . . . . . . . . Total Part Build Rating . | . . . . . . . . . . . . . . Parts Repaired . | . . . . . . . . . . . . . . Time . | . . . . . . . . . . . . . . Parts Recycled . | . . . . . . . . . . . . . . Recycled Matter . | . . . . . . . . . . . . . . Retrieved Matter . | . . . . . . . . . . . . . . Retrieved Components . | . . . . . . . . . . . . . . Parts Scanalyzed . | . . . . . . . . . . . . . . Part Schematics Acquired . | . . . . . . . . . . . . . . Parts Damaged . | . . . . . . . . . . . . . . Bothacking | -11 -10 -10 -10 -9 -8 -8 -7 -7 -7 -7 -7 -7 -6 ------------ Run | Scr Mat Min Exi Min Mat Sto Fac Was Fac Low Low Dat Pro Used RIF Installer . | . . . . . . . . . . . . . . Robots Hacked . | . . . . . . . . . . . . . . Non-combat . | . . . . . . . . . . . . . . Combat . | . . . . . . . . . . . . . . Robot Hacks Applied . | . . . . . . . . . . . . . . Relay Couplers Released . | . . . . . . . . . . . . . . Robots Rewired . | . . . . . . . . . . . . . . Allies Hacked . | . . . . . . . . . . . . . . Hacks Repelled . | . . . . . . . . . . . . . . Allies | -11 -10 -10 -10 -9 -8 -8 -7 -7 -7 -7 -7 -7 -6 -------- Run | Scr Mat Min Exi Min Mat Sto Fac Was Fac Low Low Dat Pro Total Allies 1 | . . . . . . . . . . . . . 1 Largest Group 1 | . . . . . . . . . . . . . 1 Highest-Rated Group 94 | . . . . . . . . . . . . . 94 Highest-Rated Ally 94 | . . . . . . . . . . . . . 94 Total Orders . | . . . . . . . . . . . . . . Ally Attacks 11 | . . . . . . . . . . . . . 11 Total Damage 241 | . . . . . . . . . . . . . 241 Kills 3 | . . . . . . . . . . . . . 3 Allies Corrupted . | . . . . . . . . . . . . . . Allies Melted . | . . . . . . . . . . . . . . Intel | -11 -10 -10 -10 -9 -8 -8 -7 -7 -7 -7 -7 -7 -6 ------- Run | Scr Mat Min Exi Min Mat Sto Fac Was Fac Low Low Dat Pro Robot Analysis Total . | . . . . . . . . . . . . . . Derelict Logs Recovered 2 | . . . . 1 . . . . . . . . 1 Drone Launches . | . . . . . . . . . . . . . . Drone Recoveries . | . . . . . . . . . . . . . . Exploration | -11 -10 -10 -10 -9 -8 -8 -7 -7 -7 -7 -7 -7 -6 ------------- Run | Scr Mat Min Exi Min Mat Sto Fac Was Fac Low Low Dat Pro Turns Passed 3682 | 61 459 104 715 105 775 505 322 106 142 106 77 44 161 Spaces Moved 2686 | 48 259 61 415 41 312 216 171 103 283 215 154 88 320 Core 1073 | 27 . . . . . . . 64 225 195 154 88 320 Treads 1535 | 21 259 61 415 41 312 216 171 39 . . . . . Legs . | . . . . . . . . . . . . . . Wheels . | . . . . . . . . . . . . . . Hover . | . . . . . . . . . . . . . . Flight 78 | . . . . . . . . . 58 20 . . . Fastest Speed 40 | 50 160 160 160 160 180 180 180 50 40 40 50 50 50 Average Speed 119 | 103 160 160 170 160 180 180 180 99 47 49 50 50 50 Slowest Speed 180 | 160 160 160 180 160 180 180 180 180 50 50 50 50 50 Overloaded Moves . | . . . . . . . . . . . . . . Propulsion Burnouts . | . . . . . . . . . . . . . . Robots Hopped 1 | . . . . . . . . . . 1 . . . Cave-ins Triggered . | . . . . . . . . . . . . . . Exploration Rate (%) 37 | 4 46 19 74 13 30 35 9 72 13 45 36 73 53 Regions Visited 13 Branch Regions 8 Pre-discovered Areas 1 | . . . . . . . . . . . . 1 . Known Exits Taken 2 | . . . . . 1 1 . . . . . . . Unknown Exits Taken 9 | 1 1 1 1 1 . . . . 1 1 1 1 . Scrap Searched . | . . . . . . . . . . . . . . Spaces Dug . | . . . . . . . . . . . . . . Terrain Destroyed 2 | . . . . . . 2 . . . . . . . Melee . | . . . . . . . . . . . . . . Projectile 2 | . . . . . . 2 . . . . . . . AOE . | . . . . . . . . . . . . . . Terrain Rammed . | . . . . . . . . . . . . . . Walls Destroyed . | . . . . . . . . . . . . . . Machines Disabled . | . . . . . . . . . . . . . . Actions | -11 -10 -10 -10 -9 -8 -8 -7 -7 -7 -7 -7 -7 -6 --------- Run | Scr Mat Min Exi Min Mat Sto Fac Was Fac Low Low Dat Pro Total 2947 | 59 283 66 421 57 421 291 179 109 287 213 153 87 321 Wait 47 | . . 3 . . 17 27 . . . . . . . Move 2672 | 47 258 60 414 40 311 215 171 102 282 212 153 87 320 Hop 1 | . . . . . . . . . . 1 . . . Pick Up 51 | 6 11 1 3 2 17 7 2 1 1 . . . . Fast Attach 6 | 2 . . . . . 1 . . 3 . . . . Attach 19 | 4 1 . . 2 10 . 2 . . . . . . Detach . | . . . . . . . . . . . . . . Swap 11 | . . . 2 . 2 7 . . . . . . . Drop 28 | . 2 1 2 . 7 9 . 6 1 . . . . Fire 111 | . 11 1 . 13 57 25 4 . . . . . . Melee . | . . . . . . . . . . . . . . Ram 1 | . . . . . . . . . . . . . 1 Kick . | . . . . . . . . . . . . . . Crush . | . . . . . . . . . . . . . . Escape Stasis . | . . . . . . . . . . . . . . Rewire . | . . . . . . . . . . . . . . Trap . | . . . . . . . . . . . . . . Miscellaneous . | . . . . . . . . . . . . . . Route ------- -11/Scrapyard -10/Materials -10/Mines -10/Exiles (discovered 2 exits: [*Min x2]) -9/Mines -8/Materials (discovered 3 exits: Fac / *Sto x2) -8/Storage -7/Factory -7/Waste -7/Factory -7/Lower Caves -7/Lower Caves -7/Data Miner -6/Proximity Caves History --------- Turn | Location | Event 10 | -11/Scrapyard | Discovered new exit (range 15) 62 | -11/Scrapyard | Entered Materials 303 | -10/Materials | Build established: Mutant 378 | -10/Materials | Discovered new exit (range 13) 521 | -10/Materials | Entered Mines 574 | -10/Mines | Met a Derelict bent on vengeance 583 | -10/Mines | Found a damaged Exp. Sensor Array with a note attached 587 | -10/Mines | Found Prototype Device 617 | -10/Mines | Deemed a non-threat by the Exiles lab entrance 619 | -10/Mines | Discovered new exit (range 5) 625 | -10/Mines | Entered Exiles 665 | -10/Exiles | Met 8R-AWN 673 | -10/Exiles | Discovered new exit (range 14) 739 | -10/Exiles | Met EX-HEX 832 | -10/Exiles | Met EX-DEC 1078 | -10/Exiles | Visited The Gauntlet 1318 | -10/Exiles | Discovered new exit (range 12) 1340 | -10/Exiles | Entered Mines 1425 | -9/Mines | Learned location of 1 exit from Materials 1433 | -9/Mines | Discovered new exit (range 9) 1445 | -9/Mines | Entered Materials 1445 | -8/Materials | Evolved 4 slots: Utility x3, Weapon x1 1446 | -8/Materials | Identified exit to Factory 1927 | -8/Materials | Identified exit to Storage 1967 | -8/Materials | Build established: Scavenger-Gunner 2220 | -8/Materials | Entered Storage 2682 | -8/Storage | Discovered exit to Factory (range 16) 2725 | -8/Storage | Entered Factory 2725 | -7/Factory | Evolved 2 slots: Utility x2 3047 | -7/Factory | Sucked down chute 3047 | -7/Factory | Entered Waste 3082 | -7/Waste | Spotted C-40 Crusher 3083 | -7/Waste | Spotted C-40 Crusher 3105 | -7/Waste | Spotted C-40 Crusher 3107 | -7/Waste | Spotted C-40 Crusher 3113 | -7/Waste | Crushed by Compactor (1 part destroyed, 2 dropped) 3119 | -7/Waste | Crushed by Compactor (1 part destroyed, 2 dropped) 3122 | -7/Waste | Crushed by Compactor (1 part destroyed, 2 dropped) 3146 | -7/Waste | Discovered new exit (range 16) 3146 | -7/Waste | Spotted C-40 Crusher 3153 | -7/Waste | Lost 3 parts (2u1w) 3153 | -7/Waste | Entered Factory 3290 | -7/Factory | Discovered new exit (range 5) 3295 | -7/Factory | Entered Lower Caves 3394 | -7/Lower Caves | Discovered new exit (range 15) 3401 | -7/Lower Caves | Entered another Lower Caves area 3415 | -7/Lower Caves | Build established: Mutant 3472 | -7/Lower Caves | Discovered new exit (range 13) 3478 | -7/Lower Caves | Entered Data Miner 3478 | -7/Data Miner | Discovered new exit (range 6) 3488 | -7/Data Miner | Met Data Miner 3501 | -7/Data Miner | Learned location of Section 7 (-2) 3501 | -7/Data Miner | Acquired the access code to Warlord's prototype stash 3510 | -7/Data Miner | Received God Mode back door access code from Data Miner 3522 | -7/Data Miner | Entered Proximity Caves 3573 | -6/Proximity Caves | Escorted by Enhanced Grunt 3580 | -6/Proximity Caves | Spotted B-75 Beast 3617 | -6/Proximity Caves | Learned location of 1 exit from Factory 3622 | -6/Proximity Caves | Core integrity fell below 50% 3657 | -6/Proximity Caves | Attracted the attention of an 0b10 outpost 3657 | -6/Proximity Caves | Core integrity fell below 20% 3683 | -6/Proximity Caves | Destroyed by S-27 Virus with Autogun Last Messages --------------- LOCATION=UNKNOWN GOAL=ESCAPE A derelict emerges from the shadows: "Hey! In the mood for some fun?" BO-S0X(c): "Looks like you're headed in the direction of 0b10." Enhanced Grunt: "Protecting LRC-V3." S-27 Virus destroyed. VTOL Module fries itself beyond repair. S-27 Virus destroyed. Acquired derelict log, extracted data. Data stored: Factory exits (x1). Acquired 2 matter. Acquired 1 matter. Acquired 17 matter. Slug penetrates Wall. L-41 Fighter springs to life. G-50 Soldier springs to life. S-27 Virus springs to life. Y-64 Sentinel: "DETECTED UNIDENTIFIED DERELICT." Y-64 Sentinel: "REQUESTING BACKUP." Slammed into S-27 Virus. Map ----- +----------------------------------------------------+ | ???????????????# #" # #??????????????????????? | | ???????????????# #" $# # #??????????????????????? | | ??????#####????# ###/#### #??????####????????????? | | ?????# ###??# ####### #####????????? | | ????? $ ##?### #????????? | | ????? #???## ##???????? | | ????# # #????### ## #### #???????? | | #### # #??????##### ##??????? | | ## #??????????# #??????? | | #### #?????###??##### #??????? | | ## ### #?##### #?????# #??????? | | ?# ### ### #?????#### ! #??????? | | ?# ##?# ##?####??## % ####??????? | | ?# ##??## ### ##??# ! #?????????? | | ?# #????## #### ####%! ## #?????????? | | ?# ####### #??## ## ! #??#?????????? | | ?# ##???# #????????????? | | ?# #????# ## #????????????? | | # ##### #?# #### ## ###???#??????? | | ##???### ## ##??##### ## #??????? | | ##??????## #####????#### #??????? | | ##????????## ####?????## #??????? | | #??????????## #### ?????# ##??????? | | # #???????????# ##?# ???## ##???????? | | # ????????????# #???# ####s ##????????? | | # ???????????? ???# @s% #?????????? | | # ??????????? ??# s ## #??????? | | ??????????? ?? #?# s###### ##??????? | | ???????????????????# #????## ##???????? | | ###?????????????????? ?????#########????????? | | ??????????????????? ??????????????????????? | | ?????????????????? ??????????????????????? | | ???????????????? ??????????????????????? | | ???????????????# #### ??????????????????????? | | ???????????????####???## ??????????????????????? | | ???????????????????????# ?????????????????????? | | ???????????????????????## #?????????????????????? | | ?????????????????????????###?????????????????????? | | ?????????????????????????????????????????????????? | | ?????????????????????????????????????????????????? | | ?????????????????????????????????????????????????? | | ?????????????????????????????????????????????????? | | ?????????????????????????????????????????????????? | | ?????????????????????????????????????????????????? | | ?????????????????????????????????????????????????? | | ?????????????????????????????????????????????????? | | ?????????????????????????????????????????????????? | | ?????????????????????????????????????????????????? | | ?????????????????????????????????????????????????? | | ?????????????????????????????????????????????????? | +----------------------------------------------------+ Best States ------------- Heat Dissipation 62 Energy Generation 12 Energy Capacity 550 Matter Stores 300 Matter Capacity 300 Sight Range 16 Terrain Scan Density 10 Armor Coverage 150 Utility Shielding 66 Evasion (%) 62 Targeting Accuracy 5 Recoil Reduction 4 Offensive Hacking 10 Item Schematics ----------------- Combat Drone Bay | -7/Data Miner | Free Lgt. Regenerative Plating | -7/Data Miner | Free Cmb. Gravmag System | -7/Data Miner | Free Exp. Cesium-ion Thruster | -7/Data Miner | Free Mni. Smartbomb Launcher | -7/Data Miner | Free Kinetic Spear | -7/Data Miner | Free Robot Schematics ------------------ S-27 Virus | -7/Data Miner | Free G-50 Soldier | -7/Data Miner | Free G-67 Veteran | -7/Data Miner | Free L-41 Fighter | -7/Data Miner | Free X-72 Disruptor | -7/Data Miner | Free H-66 Slayer | -7/Data Miner | Free I-36 Angel | -7/Data Miner | Free I-47 Archangel | -7/Data Miner | Free Fabricated ------------ Nothing Alien Tech Used ----------------- None Achievements -------------- None Challenges ------------ None Game ------ Seed StasisAlertExpander Manual? 0 Play Time 00:35:42 Cumulative 133.2 hours Start 2021.05.28 @ 03:46:11 End 2021.05.28 @ 04:20:38 Sessions 1 Manual Loads 0 Difficulty Rogue Special Mode None Game No. 206 Rogue 204 Adventurer 2 Explorer 0 Win Type - Total 1 Types 1/0/0/0/0/0/0/0/0 Lore% 58 Gallery% 57 Achievement% 46 Wizard Run 0 Options --------- ASCII 0 Keyboard 0 Movement Mouse Keybinds 0 Fullscreen 1 Font 18/SmallcapsGlow Map View 76x50 Tactical HUD 0 Map Filters NONE Filters NONE Steam 1 RUN: c91bc61a-ba01-4f81-9c55-8ce21658ad35